[Event "XX Gran Hotel Bali-B 2023"]
[Site "Benidorm"]
[Date "2023.12.05"]
[Round "6.1"]
[White "Vladut, Matei"]
[Black "Talledo Lagos, Cesar Frank"]
[Result "0-1"]
[ECO "A13"]
[WhiteElo "1989"]
[BlackElo "1993"]
[Annotator "NA RC"]
[PlyCount "80"]
[EventDate "2023.12.02"]
[EventType "swiss"]
[EventCountry "ESP"]
[SourceTitle "playchess.com"]
[Source "ChessBase"]
[SourceQuality "1"]
[TimeControl "5400+30"]

1. c4 {[%emt 0:00:06]} e6 {[%emt 0:00:06]} 2. g3 {[%emt 0:00:05]} d5 {[%emt 0:00:05]} 3. Bg2 {[%emt 0:00:04]} a6 {[%emt 0:00:04]} 4. Nf3 {[%emt 0:00:20]} dxc4 {[%emt 0:04:01]} 5. a4 {[%emt 0:00:34]} Nc6 {[%emt 0:01:39]} 6. Qc2 {[%emt 0:02:26]} e5 {[%emt 0:03:16]} 7. Qxc4 {[%emt 0:00:14]} Be6 {[%emt 0:00:37]} 8. Qc2 {[%emt 0:06:37]} Nf6 {[%emt 0:01:40]} 9. d3 {[%emt 0:00:08]} Bb4+ {[%emt 0:05:37]} 10. Bd2 {[%emt 0:13:54]} Bxd2+ {[%emt 0:07:28]} 11. Nbxd2 {[%emt 0:00:52]} O-O {[%emt 0:00:07]} 12. O-O {[%emt 0:03:34]} Re8 {[%emt 0:00:17]} 13. b4 {[%emt 0:10:29]} e4 {[%emt 0:14:53]} 14. dxe4 {[%emt 0:12:14]} Nxb4 {[%emt 0:00:19]} 15. Qb2 {[%emt 0:02:23]} a5 {[%emt 0:01:36]} 16. Nd4 {[%emt 0:01:10]} Qe7 {[%emt 0:05:54]} 17. e5 {[%emt 0:14:02]} Nfd5 {[%emt 0:11:13]} 18. e4 {[%emt 0:00:23]} Nb6 {[%emt 0:00:48]} 19. f4 {[%emt 0:00:51]} Rad8 {[%emt 0:01:58]} 20. N2f3 {[%emt 0:04:01]} c5 {[%emt 0:05:08]} 21. Nf5 {[%emt 0:12:28]} Bxf5 {[%emt 0:00:29]} 22. exf5 {[%emt 0:00:01]} c4 {[%emt 0:00:32]} 23. Qf2 {[%emt 0:01:27]} Qc7 {[%emt 0:03:12]} 24. Nd4 {[%emt 0:04:10]} Rxd4 {[%emt 0:10:13]} 25. Qxd4 {[%emt 0:00:02]} Nc2 {[%emt 0:00:06]} 26. Qe4 {[%emt 0:01:52]} Nxa1 {[%emt 0:00:27]} 27. Rxa1 {[%emt 0:00:01]} c3 {[%emt 0:01:27]} 28. Qxb7 {[%emt 0:01:42]} Qc5+ {[%emt 0:00:14]} 29. Kf1 {[%emt 0:03:27]} Qc4+ {[%emt 0:01:38]} 30. Kf2 {[%emt 0:02:05]} Qd4+ {[%emt 0:00:30]} 31. Kf1 {[%emt 0:00:17]} c2 {[%emt 0:02:31]} 32. Re1 {[%emt 0:01:11]} Qd3+ {[%emt 0:00:14]} 33. Kg1 {[%emt 0:00:17]} Qd2 {[%emt 0:00:09]} 34. Qe4 {[%emt 0:02:56]} c1=Q {[%emt 0:00:35]} 35. Rxc1 {[%emt 0:00:06]} Qxc1+ {[%emt 0:00:03]} 36. Kf2 {[%emt 0:00:05]} Qd2+ {[%emt 0:00:42]} 37. Kg1 {[%emt 0:00:19]} Qd1+ {[%emt 0:00:46]} 38. Bf1 {[%emt 0:00:09]} Rd8 {[%emt 0:02:38]} 39. Qb7 {[%emt 0:00:19]} Qd4+ {[%emt 0:00:27]} 40. Kg2 {[%emt 0:00:04]} Qd5+ {[%emt 0:00:07]} 0-1

[Event "XX Gran Hotel Bali-B 2023"]
[Site "Benidorm"]
[Date "2023.12.05"]
[Round "6.2"]
[White "Sempere Domenech, Abel"]
[Black "Haag Vetter, Michael Harry"]
[Result "1-0"]
[ECO "D31"]
[WhiteElo "1981"]
[BlackElo "1971"]
[Annotator "RC"]
[PlyCount "101"]
[EventDate "2023.12.02"]
[EventType "swiss"]
[EventCountry "ESP"]
[SourceTitle "playchess.com"]
[Source "ChessBase"]
[SourceQuality "1"]
[TimeControl "5400+30"]

1. d4 {[%emt 0:07:59]} d5 {[%emt 0:00:11]} 2. c4 {[%emt 0:00:06]} e6 {[%emt 0:00:06]} 3. Nc3 {[%emt 0:00:34]} c6 {[%emt 0:00:04]} 4. Nf3 {[%emt 0:02:26]} dxc4 {[%emt 0:00:06]} 5. a4 {[%emt 0:02:30]} Bb4 {[%emt 0:00:24]} 6. e3 {[%emt 0:02:00]} b5 {[%emt 0:00:12]} 7. Bd2 {[%emt 0:01:44]} a5 {[%emt 0:00:13]} 8. axb5 {[%emt 0:01:39]} Bxc3 {[%emt 0:00:19]} 9. Bxc3 {[%emt 0:00:02]} cxb5 {[%emt 0:00:12]} 10. b3 {[%emt 1:16:30]} Bb7 11. bxc4 {[%emt 0:00:00]} b4 {[%emt 0:00:28]} 12. Bb2 {[%emt 0:00:00]} Nf6 {[%emt 0:00:30]} 13. Bd3 {[%emt 0:00:00]} Nbd7 {[%emt 0:00:30]} 14. O-O {[%emt 0:00:00]} O-O {[%emt 0:00:08]} 15. c5 {[%emt 0:00:00]} Qc7 {[%emt 0:08:08]} 16. Bc2 {[%emt 0:00:00]} Rfd8 {[%emt 0:00:42]} 17. Qb1 {[%emt 0:00:00]} h5 {[%emt 0:06:40]} 18. Ng5 {[%emt 0:00:00]} Ng4 {[%emt 0:07:37]} 19. g3 {[%emt 0:00:00]} Ndf6 {[%emt 0:21:21]} 20. e4 {[%emt 0:00:00]} h4 {[%emt 0:01:04]} 21. e5 {[%emt 0:00:00]} hxg3 {[%emt 0:04:37]} 22. hxg3 {[%emt 0:00:00]} Nxe5 {[%emt 0:19:00]} 23. dxe5 {[%emt 0:03:26]} Qc6 {[%emt 0:00:13]} 24. Bh7+ {[%emt 0:00:37]} Kf8 {[%emt 0:00:12]} 25. f3 {[%emt 0:00:14]} Qxc5+ {[%emt 0:00:08]} 26. Kh2 {[%emt 0:00:34]} Rd2+ {[%emt 0:01:01]} 27. Kh3 {[%emt 0:00:15]} Nxh7 {[%emt 0:05:56]} 28. Qxh7 {[%emt 0:00:09]} Rxb2 {[%emt 0:00:19]} 29. Qh8+ {[%emt 0:00:16]} Ke7 {[%emt 0:00:08]} 30. Qxg7 {[%emt 0:00:07]} Rf8 {[%emt 0:02:53]} 31. Rac1 {[%emt 0:00:33]} Rc2 {[%emt 0:01:56]} 32. Qf6+ {[%emt 0:00:16]} Ke8 {[%emt 0:02:28]} 33. Rfd1 {[%emt 0:02:37]} Bd5 {[%emt 0:00:16]} 34. Ne4 {[%emt 0:00:39]} Qc6 {[%emt 0:12:38]} 35. Rxd5 {[%emt 0:00:57]} exd5 {[%emt 0:01:45]} 36. Nd6+ {[%emt 0:00:55]} Kd7 {[%emt 0:01:21]} 37. Qf5+ {[%emt 0:00:11]} Ke7 {[%emt 0:01:22]} 38. Rxc2 {[%emt 0:00:08]} Qd7 {[%emt 0:00:18]} 39. g4 {[%emt 0:01:09]} Qxf5 {[%emt 0:00:55]} 40. gxf5 {[%emt 0:00:09]} Rd8 {[%emt 0:02:06]} 41. Rc7+ {[%emt 0:00:17]} Rd7 {[%emt 0:00:09]} 42. Rc8 {[%emt 0:00:46]} Rxd6 {[%emt 0:00:58]} 43. exd6+ {[%emt 0:00:06]} Kxd6 {[%emt 0:00:05]} 44. Ra8 {[%emt 0:00:09]} Kc5 {[%emt 0:00:31]} 45. Rxa5+ {[%emt 0:00:13]} Kc4 {[%emt 0:00:03]} 46. Ra7 {[%emt 0:00:05]} b3 {[%emt 0:01:14]} 47. Rxf7 {[%emt 0:00:04]} d4 {[%emt 0:00:11]} 48. Rc7+ {[%emt 0:00:04]} Kd3 {[%emt 0:00:47]} 49. f6 {[%emt 0:00:11]} b2 {[%emt 0:00:06]} 50. Rb7 {[%emt 0:00:05]} Kc2 {[%emt 0:00:25]} 51. f7 {[%emt 0:05:18]} 1-0

[Event "XX Gran Hotel Bali-B 2023"]
[Site "Benidorm"]
[Date "2023.12.05"]
[Round "6.3"]
[White "Blanco Garcia Bajo, David"]
[Black "Navarro Rico, Lluis"]
[Result "0-1"]
[ECO "B23"]
[WhiteElo "1812"]
[BlackElo "1937"]
[Annotator "NA RC"]
[PlyCount "48"]
[EventDate "2023.12.02"]
[EventType "swiss"]
[EventCountry "ESP"]
[SourceTitle "playchess.com"]
[Source "ChessBase"]
[SourceQuality "1"]
[TimeControl "5400+30"]

1. e4 {[%emt 0:00:02]} c5 {[%emt 0:15:01]} 2. Nc3 {[%emt 0:00:09]} e6 {[%emt 0:00:04]} 3. g3 {[%emt 0:00:12]} d5 {[%emt 0:00:05]} 4. exd5 {[%emt 0:02:00]} exd5 {[%emt 0:00:43]} 5. d4 {[%emt 0:00:29]} cxd4 {[%emt 0:00:05]} 6. Qxd4 {[%emt 0:00:05]} Nf6 {[%emt 0:00:07]} 7. Bg5 {[%emt 0:00:43]} Nc6 {[%emt 0:00:06]} 8. Bb5 {[%emt 0:05:03]} Be7 {[%emt 0:04:32]} 9. O-O-O {[%emt 0:04:16]} O-O {[%emt 0:00:10]} 10. Qd2 {[%emt 0:07:52]} Qa5 {[%emt 0:07:11]} 11. Re1 {[%emt 0:07:34]} d4 {[%emt 0:06:29]} 12. Nd5 {[%emt 0:14:19]} Qxd2+ {[%emt 0:01:21]} 13. Kxd2 {[%emt 0:00:24]} Nxd5 {[%emt 0:00:06]} 14. Bxc6 {[%emt 0:00:09]} Bxg5+ {[%emt 0:00:08]} 15. f4 {[%emt 0:00:06]} Nxf4 {[%emt 0:00:45]} 16. gxf4 {[%emt 0:02:31]} Bxf4+ {[%emt 0:00:05]} 17. Kd3 {[%emt 0:00:10]} bxc6 {[%emt 0:00:05]} 18. Kxd4 {[%emt 0:00:17]} c5+ {[%emt 0:00:11]} 19. Kxc5 {[%emt 0:00:38]} Bb7 {[%emt 0:00:04]} 20. Nh3 {[%emt 0:00:14]} Rac8+ {[%emt 0:01:22]} 21. Kb4 {[%emt 0:00:43]} Bd6+ {[%emt 0:00:26]} 22. Ka5 {[%emt 0:00:44]} Rc5+ {[%emt 0:00:28]} 23. Ka4 {[%emt 0:00:15]} Bc6+ {[%emt 0:00:05]} 24. Kb3 {[%emt 0:00:12]} Rb8+ {[%emt 0:00:04]} 0-1

[Event "XX Gran Hotel Bali-B 2023"]
[Site "Benidorm"]
[Date "2023.12.05"]
[Round "6.4"]
[White "Kao, Jamison Edrich"]
[Black "Lorenzo Calvo, Damian Angel"]
[Result "1/2-1/2"]
[ECO "B31"]
[WhiteElo "1701"]
[BlackElo "1947"]
[Annotator "RC"]
[PlyCount "176"]
[EventDate "2023.12.02"]
[EventType "swiss"]
[EventCountry "ESP"]
[SourceTitle "playchess.com"]
[Source "ChessBase"]
[SourceQuality "1"]
[TimeControl "5400+30"]

1. e4 {[%emt 0:00:01]} c5 {[%emt 0:00:15]} 2. Nf3 {[%emt 0:00:03]} Nc6 {[%emt 0:00:14]} 3. Bb5 {[%emt 0:00:04]} g6 {[%emt 0:00:43]} 4. Bxc6 {[%emt 0:00:04]} dxc6 {[%emt 0:00:17]} 5. d3 {[%emt 0:00:03]} Bg7 {[%emt 0:01:10]} 6. h3 {[%emt 0:00:03]} e5 {[%emt 0:02:01]} 7. Be3 {[%emt 0:00:04]} b6 {[%emt 0:02:38]} 8. a3 {[%emt 0:00:11]} Qe7 {[%emt 0:03:03]} 9. Qd2 {[%emt 0:03:15]} Be6 {[%emt 0:05:32]} 10. O-O {[%emt 0:03:19]} Rd8 {[%emt 0:01:42]} 11. Nc3 {[%emt 0:01:00]} c4 {[%emt 0:02:51]} 12. Qe2 {[%emt 0:01:58]} cxd3 {[%emt 0:01:01]} 13. cxd3 {[%emt 0:00:04]} Qd7 {[%emt 0:03:51]} 14. Rad1 {[%emt 0:04:17]} Bb3 {[%emt 1:12:12]} 15. Rd2 {[%emt 0:00:06]} c5 {[%emt 0:00:00]} 16. Nh2 {[%emt 0:03:59]} Ne7 {[%emt 0:00:00]} 17. f4 {[%emt 0:00:37]} exf4 {[%emt 0:00:00]} 18. Bxf4 {[%emt 0:00:31]} O-O {[%emt 0:00:00]} 19. Nf3 {[%emt 0:04:40]} Nc6 {[%emt 0:02:30]} 20. Qf2 {[%emt 0:02:23]} Nd4 {[%emt 0:00:00]} 21. Re1 {[%emt 0:11:04]} Rfe8 {[%emt 0:00:00]} 22. Qh4 {[%emt 0:04:18]} f6 {[%emt 0:00:00]} 23. Qf2 {[%emt 0:06:05]} f5 {[%emt 0:00:00]} 24. Bg5 {[%emt 0:03:57]} Rc8 {[%emt 0:00:00]} 25. Qh4 {[%emt 0:02:59]} fxe4 {[%emt 0:00:00]} 26. Nxe4 {[%emt 0:08:32]} Nxf3+ {[%emt 0:00:00]} 27. gxf3 {[%emt 0:00:03]} Qf5 {[%emt 0:00:00]} 28. Kg2 {[%emt 0:02:35]} Rf8 {[%emt 0:00:00]} 29. Qg4 {[%emt 0:00:42]} Rce8 {[%emt 0:00:00]} 30. Rde2 {[%emt 0:02:17]} Bd5 {[%emt 0:00:00]} 31. Qxf5 {[%emt 0:02:21]} gxf5 {[%emt 0:00:00]} 32. Nd6 {[%emt 0:00:25]} Rxe2+ {[%emt 0:00:00]} 33. Rxe2 {[%emt 0:00:02]} f4 {[%emt 0:00:00]} 34. Be7 {[%emt 0:02:57]} Rb8 {[%emt 0:00:00]} 35. Nf5 {[%emt 0:05:36]} Rb7 {[%emt 0:00:00]} 36. Bg5 {[%emt 0:02:54]} Rd7 {[%emt 0:00:00]} 37. Re7 {[%emt 0:11:38]} Bc6 {[%emt 0:00:00]} 38. Rxg7+ {[%emt 0:00:37]} Rxg7 {[%emt 0:00:00]} 39. Nxg7 {[%emt 0:00:03]} Kxg7 {[%emt 0:00:00]} 40. Bxf4 {[%emt 0:00:05]} Bb5 {[%emt 0:00:00]} 41. Bb8 {[%emt 0:00:21]} a6 {[%emt 0:00:00]} 42. Ba7 {[%emt 0:03:27]} Bxd3 {[%emt 0:00:00]} 43. Bxb6 {[%emt 0:00:02]} c4 {[%emt 0:00:00]} 44. Kg3 {[%emt 0:01:06]} Kf6 {[%emt 0:00:00]} 45. Kf4 {[%emt 0:00:15]} Bc2 {[%emt 0:00:00]} 46. Bd8+ {[%emt 0:00:36]} Ke6 {[%emt 0:00:00]} 47. h4 {[%emt 0:00:32]} Kd5 {[%emt 0:00:00]} 48. Bc7 {[%emt 0:01:41]} Bb1 {[%emt 0:00:00]} 49. Ke3 {[%emt 0:00:50]} Bf5 {[%emt 0:00:00]} 50. Kd2 {[%emt 0:00:40]} Kc5 {[%emt 0:00:00]} 51. Kc3 {[%emt 0:00:10]} Bg6 {[%emt 0:00:00]} 52. Bd8 {[%emt 0:00:25]} Bf5 {[%emt 0:00:00]} 53. Be7+ {[%emt 0:03:14]} Kd5 {[%emt 0:00:12]} 54. Kb4 {[%emt 0:00:50]} Bd3 {[%emt 0:00:11]} 55. Ka5 {[%emt 0:01:13]} Kc6 {[%emt 0:00:11]} 56. Bf6 {[%emt 0:00:21]} Kb7 {[%emt 0:00:04]} 57. Be5 {[%emt 0:00:41]} Be2 {[%emt 0:02:19]} 58. f4 {[%emt 0:00:15]} Bd3 {[%emt 0:00:02]} 59. Bd4 {[%emt 0:00:17]} Kc6 {[%emt 0:01:57]} 60. Kxa6 {[%emt 0:03:14]} c3+ {[%emt 0:00:01]} 61. Ka5 {[%emt 0:00:05]} cxb2 {[%emt 0:00:12]} 62. Bxb2 {[%emt 0:00:03]} Kc5 {[%emt 0:00:13]} 63. Be5 {[%emt 0:00:53]} Kc6 {[%emt 0:00:35]} 64. Kb4 {[%emt 0:00:48]} Kd5 {[%emt 0:00:15]} 65. Bb8 {[%emt 0:00:45]} Kc6 {[%emt 0:00:39]} 66. Kc3 {[%emt 0:00:18]} Bb1 {[%emt 0:01:37]} 67. Kd4 {[%emt 0:00:09]} Kd7 {[%emt 0:00:21]} 68. Ke5 {[%emt 0:00:44]} Bc2 {[%emt 0:00:39]} 69. Bd6 {[%emt 0:00:23]} Bb3 {[%emt 0:00:27]} 70. Bb4 {[%emt 0:00:14]} Kc6 {[%emt 0:00:38]} 71. Kf6 {[%emt 0:01:35]} Kd7 {[%emt 0:00:42]} 72. h5 {[%emt 0:00:38]} Bd1 {[%emt 0:00:34]} 73. h6 {[%emt 0:00:07]} Bb3 {[%emt 0:00:16]} 74. Kg7 {[%emt 0:00:24]} Bc2 {[%emt 0:00:25]} 75. a4 {[%emt 0:00:15]} Ke6 {[%emt 0:00:23]} 76. a5 {[%emt 0:00:25]} Bd3 {[%emt 0:00:06]} 77. Ba3 {[%emt 0:00:46]} Bc4 {[%emt 0:01:21]} 78. f5+ {[%emt 0:01:32]} Kxf5 {[%emt 0:00:16]} 79. Kf8 {[%emt 0:02:36]} Ke6 {[%emt 0:00:17]} 80. Ke8 {[%emt 0:00:18]} Bd3 {[%emt 0:02:30]} 81. Be7 {[%emt 0:00:09]} Ba6 {[%emt 0:02:12]} 82. Bd8 {[%emt 0:00:11]} Kd6 {[%emt 0:00:09]} 83. Kf7 {[%emt 0:00:24]} Kc6 {[%emt 0:00:07]} 84. Kg7 {[%emt 0:00:06]} Bd3 {[%emt 0:00:09]} 85. Kf6 {[%emt 0:00:11]} Kb5 {[%emt 0:00:11]} 86. Ke5 {[%emt 0:00:06]} Ka6 {[%emt 0:00:06]} 87. Kd6 {[%emt 0:00:06]} Bg6 {[%emt 0:00:59]} 88. Bb6 {[%emt 0:00:06]} Bc2 {[%emt 0:00:05]} 1/2-1/2

[Event "XX Gran Hotel Bali-B 2023"]
[Site "Benidorm"]
[Date "2023.12.05"]
[Round "6.5"]
[White "Lloret Climent, Miguel"]
[Black "Gimeno Simo, Sergio"]
[Result "1-0"]
[ECO "A09"]
[WhiteElo "1954"]
[BlackElo "1845"]
[Annotator "NA RC"]
[PlyCount "41"]
[EventDate "2023.12.02"]
[EventType "swiss"]
[EventCountry "ESP"]
[SourceTitle "playchess.com"]
[Source "ChessBase"]
[SourceQuality "1"]
[TimeControl "5400+30"]

1. Nf3 {[%emt 0:00:04]} d5 {[%emt 0:01:28]} 2. g3 {[%emt 0:00:26]} Nf6 {[%emt 0:02:47]} 3. Bg2 {[%emt 0:00:15]} c5 {[%emt 0:01:03]} 4. c4 {[%emt 0:01:43]} d4 {[%emt 0:04:41]} 5. d3 {[%emt 0:01:19]} Nc6 {[%emt 0:00:57]} 6. O-O {[%emt 0:02:46]} Bf5 {[%emt 0:04:52]} 7. Nh4 {[%emt 0:02:32]} Bg6 {[%emt 0:00:52]} 8. Qa4 {[%emt 0:02:19]} Qd7 {[%emt 0:00:33]} 9. Na3 {[%emt 0:07:49]} Rc8 {[%emt 0:07:22]} 10. Bf4 Bh5 {[%emt 0:01:04]} 11. Rfe1 h6 {[%emt 0:02:56]} 12. Bd2 {[%emt 0:21:22]} g5 {[%emt 0:14:05]} 13. Nf3 e5 {[%emt 0:00:33]} 14. e3 Qf5 {[%emt 0:54:17]} 15. Nxe5 {[%emt 0:06:41]} Bd6 {[%emt 0:00:30]} 16. Nxc6 {[%emt 0:51:14]} bxc6 {[%emt 0:00:00]} 17. exd4+ {[%emt 0:00:00]} Kf8 {[%emt 0:00:00]} 18. dxc5 {[%emt 0:00:00]} Bb8 {[%emt 0:00:00]} 19. Bc3 {[%emt 0:00:00]} Ng4 {[%emt 0:00:00]} 20. Qc2 {[%emt 0:00:00]} Rh7 {[%emt 0:00:00]} 21. Be4 {[%emt 0:00:00]} 1-0

[Event "XX Gran Hotel Bali-B 2023"]
[Site "Benidorm"]
[Date "2023.12.05"]
[Round "6.6"]
[White "Sham R"]
[Black "Sanchez Lopez, Jesus"]
[Result "1-0"]
[ECO "C47"]
[WhiteElo "1828"]
[BlackElo "1993"]
[Annotator "RC"]
[PlyCount "115"]
[EventDate "2023.12.02"]
[EventType "swiss"]
[EventCountry "ESP"]
[SourceTitle "playchess.com"]
[Source "ChessBase"]
[SourceQuality "1"]
[TimeControl "5400+30"]

1. e4 {[%emt 0:15:19]} e5 {[%emt 0:00:10]} 2. Nf3 {[%emt 0:00:04]} Nc6 {[%emt 0:00:24]} 3. d4 {[%emt 0:00:06]} exd4 {[%emt 0:00:18]} 4. Nxd4 {[%emt 0:00:04]} Nf6 {[%emt 0:00:18]} 5. Nc3 {[%emt 0:02:10]} Nxe4 {[%emt 0:00:13]} 6. Nxe4 {[%emt 0:01:50]} Qe7 {[%emt 0:00:13]} 7. f3 {[%emt 0:05:39]} d5 {[%emt 0:00:10]} 8. Nxc6 {[%emt 0:00:56]} bxc6 {[%emt 0:00:21]} 9. Bd3 {[%emt 0:00:07]} dxe4 {[%emt 0:00:30]} 10. fxe4 {[%emt 0:00:03]} Qh4+ {[%emt 0:00:23]} 11. g3 {[%emt 0:00:17]} Qf6 {[%emt 0:00:04]} 12. Bf4 {[%emt 0:03:38]} Bc5 {[%emt 0:14:36]} 13. e5 {[%emt 0:02:50]} Qe7 {[%emt 0:03:47]} 14. Qf3 {[%emt 0:01:52]} Rb8 {[%emt 0:06:51]} 15. O-O-O {[%emt 0:04:47]} O-O {[%emt 0:27:31]} 16. h4 {[%emt 0:14:50]} f5 {[%emt 0:18:00]} 17. Bc4+ {[%emt 0:20:39]} Be6 {[%emt 0:02:50]} 18. Bg5 {[%emt 0:11:11]} Qe8 {[%emt 0:01:04]} 19. Qc3 {[%emt 0:02:49]} Bb4 {[%emt 0:01:04]} 20. Qd4 {[%emt 0:01:02]} Qf7 {[%emt 0:03:44]} 21. Bb3 {[%emt 0:02:44]} Rfe8 {[%emt 0:04:49]} 22. Rhf1 {[%emt 0:04:56]} Bxb3 {[%emt 0:02:30]} 23. axb3 {[%emt 0:00:02]} Qe6 {[%emt 0:00:36]} 24. Bf4 {[%emt 0:02:08]} Re7 {[%emt 0:06:35]} 25. Rf3 {[%emt 0:00:08]} c5 {[%emt 0:02:04]} 26. Qd3 {[%emt 0:00:16]} Rf7 {[%emt 0:01:48]} 27. Qc4 {[%emt 0:00:40]} Qxc4 {[%emt 0:01:59]} 28. bxc4 {[%emt 0:00:02]} Ba5 {[%emt 0:00:39]} 29. Re3 {[%emt 0:00:32]} Re7 {[%emt 0:00:22]} 30. Rd5 {[%emt 0:02:04]} Rbe8 {[%emt 0:00:54]} 31. h5 {[%emt 0:00:41]} h6 {[%emt 0:00:27]} 32. Red3 {[%emt 0:00:26]} Bb6 {[%emt 0:00:37]} 33. c3 {[%emt 0:01:13]} a5 {[%emt 0:00:36]} 34. Kc2 {[%emt 0:00:13]} Kf7 {[%emt 0:00:28]} 35. Rd1 {[%emt 0:00:49]} Re6 {[%emt 0:00:27]} 36. Rd7+ {[%emt 0:00:22]} R8e7 {[%emt 0:00:11]} 37. Rd8 {[%emt 0:00:29]} c6 {[%emt 0:00:37]} 38. R8d6 {[%emt 0:00:54]} Kf8 {[%emt 0:00:48]} 39. Rxe6 {[%emt 0:00:19]} Rxe6 {[%emt 0:00:00]} 40. Rd7 {[%emt 0:00:22]} Kg8 {[%emt 0:01:00]} 41. Rb7 {[%emt 0:00:14]} Bd8 {[%emt 0:00:08]} 42. Rb8 {[%emt 0:00:17]} Re8 {[%emt 0:00:32]} 43. Rc8 {[%emt 0:00:48]} Kf7 {[%emt 0:00:45]} 44. Rxc6 {[%emt 0:00:02]} Re6 {[%emt 0:00:31]} 45. Rxc5 {[%emt 0:00:11]} g5 {[%emt 0:00:31]} 46. hxg6+ {[%emt 0:00:08]} Kxg6 {[%emt 0:00:14]} 47. Rc8 {[%emt 0:00:28]} Bg5 {[%emt 0:00:43]} 48. c5 {[%emt 0:01:29]} Kh5 {[%emt 0:00:31]} 49. c6 {[%emt 0:00:30]} Kg4 {[%emt 0:00:17]} 50. c7 {[%emt 0:00:07]} Rc6 {[%emt 0:00:47]} 51. Kd3 {[%emt 0:00:04]} Kf3 {[%emt 0:00:12]} 52. Kd4 {[%emt 0:00:14]} Be7 {[%emt 0:00:32]} 53. Kd5 {[%emt 0:00:23]} Rc5+ {[%emt 0:00:17]} 54. Ke6 {[%emt 0:00:02]} Bg5 {[%emt 0:00:30]} 55. Kd6 {[%emt 0:00:02]} Rc4 {[%emt 0:00:23]} 56. Kd5 {[%emt 0:00:02]} Re4 {[%emt 0:01:04]} 57. Rf8 {[%emt 0:00:24]} Bxf4 {[%emt 0:00:32]} 58. gxf4 {[%emt 0:04:32]} 1-0

[Event "XX Gran Hotel Bali-B 2023"]
[Site "Benidorm"]
[Date "2023.12.05"]
[Round "6.7"]
[White "Lloret Mauri, Jaime"]
[Black "Conde Chamizo, Pablo"]
[Result "0-1"]
[ECO "B22"]
[WhiteElo "1997"]
[BlackElo "1905"]
[Annotator "NA RC"]
[PlyCount "72"]
[EventDate "2023.12.02"]
[EventType "swiss"]
[EventCountry "ESP"]
[SourceTitle "playchess.com"]
[Source "ChessBase"]
[SourceQuality "1"]
[TimeControl "5400+30"]

1. e4 {[%emt 0:10:06]} c5 {[%emt 0:00:05]} 2. c3 {[%emt 0:00:04]} g6 {[%emt 0:00:42]} 3. d4 {[%emt 0:00:07]} cxd4 {[%emt 0:00:05]} 4. cxd4 {[%emt 0:00:04]} d5 {[%emt 0:00:06]} 5. e5 {[%emt 0:00:06]} Nc6 {[%emt 0:00:08]} 6. Nf3 {[%emt 0:00:42]} Bg4 {[%emt 0:01:43]} 7. Be2 {[%emt 0:01:10]} Nh6 {[%emt 0:01:13]} 8. Be3 {[%emt 0:04:17]} Nf5 {[%emt 0:08:34]} 9. Nc3 {[%emt 0:00:40]} e6 {[%emt 0:02:24]} 10. Qd2 {[%emt 0:01:17]} Nxe3 {[%emt 0:07:33]} 11. fxe3 {[%emt 0:04:43]} Bxf3 {[%emt 0:17:55]} 12. Bxf3 {[%emt 0:00:12]} Bh6 {[%emt 0:00:09]} 13. O-O {[%emt 0:02:36]} O-O {[%emt 0:10:46]} 14. Rfe1 {[%emt 0:07:23]} Qb6 {[%emt 0:06:17]} 15. Qf2 {[%emt 0:09:42]} Rfd8 {[%emt 0:02:49]} 16. Na4 {[%emt 0:04:26]} Qb4 {[%emt 0:01:06]} 17. Nc5 {[%emt 0:00:22]} Nxe5 {[%emt 0:00:52]} 18. a3 {[%emt 0:01:22]} Qb6 {[%emt 0:00:54]} 19. Be2 {[%emt 0:01:19]} Nd7 {[%emt 0:05:32]} 20. Rf1 {[%emt 0:01:03]} f6 {[%emt 0:03:58]} 21. Kh1 {[%emt 0:02:27]} Bg7 {[%emt 0:03:00]} 22. b4 {[%emt 0:02:18]} Nxc5 {[%emt 0:02:39]} 23. dxc5 {[%emt 0:00:23]} Qc7 {[%emt 0:00:38]} 24. Bf3 {[%emt 0:03:33]} b6 {[%emt 0:02:02]} 25. Rac1 {[%emt 0:00:37]} bxc5 {[%emt 0:01:12]} 26. Rxc5 {[%emt 0:00:11]} Qb7 {[%emt 0:00:47]} 27. Qc2 {[%emt 0:02:43]} Qa6 {[%emt 0:00:39]} 28. Ra1 {[%emt 0:04:22]} f5 {[%emt 0:01:59]} 29. Be2 {[%emt 0:00:35]} Qb6 {[%emt 0:00:49]} 30. Rc1 {[%emt 0:00:27]} Bf8 {[%emt 0:00:42]} 31. Rc3 {[%emt 0:01:34]} Bh6 {[%emt 0:00:29]} 32. Qb3 {[%emt 0:01:08]} Rd6 {[%emt 0:01:53]} 33. g3 {[%emt 0:02:06]} d4 {[%emt 0:01:24]} 34. Rc8+ {[%emt 0:02:04]} Rxc8 {[%emt 0:00:09]} 35. Rxc8+ {[%emt 0:00:18]} Kg7 {[%emt 0:00:19]} 36. Qc4 {[%emt 0:00:49]} Qb7+ {[%emt 0:00:35]} 0-1

[Event "XX Gran Hotel Bali-B 2023"]
[Site "Benidorm"]
[Date "2023.12.05"]
[Round "6.8"]
[White "Fabre Massana, Miquel"]
[Black "Viciano Barrachina, Aitor"]
[Result "1-0"]
[ECO "B32"]
[WhiteElo "1982"]
[BlackElo "1878"]
[Annotator "NA RC"]
[PlyCount "47"]
[EventDate "2023.12.02"]
[EventType "swiss"]
[EventCountry "ESP"]
[SourceTitle "playchess.com"]
[Source "ChessBase"]
[SourceQuality "1"]
[TimeControl "5400+30"]

1. e4 {[%emt 0:00:03]} c5 {[%emt 0:00:18]} 2. Nf3 {[%emt 0:00:13]} Nc6 {[%emt 0:00:20]} 3. d4 {[%emt 0:00:14]} cxd4 {[%emt 0:00:34]} 4. Nxd4 {[%emt 0:00:03]} e5 {[%emt 0:00:20]} 5. Nb5 {[%emt 0:00:28]} d6 {[%emt 0:00:59]} 6. N1c3 {[%emt 0:02:19]} a6 {[%emt 0:00:49]} 7. Na3 {[%emt 0:00:05]} Be6 {[%emt 0:01:15]} 8. Nd5 {[%emt 0:02:57]} Nf6 {[%emt 0:03:03]} 9. Bg5 {[%emt 0:05:49]} Qa5+ {[%emt 0:06:33]} 10. Bd2 {[%emt 0:01:13]} Qd8 {[%emt 0:00:35]} 11. Nxf6+ {[%emt 0:09:34]} Qxf6 {[%emt 0:10:34]} 12. Bc4 {[%emt 0:03:05]} b5 {[%emt 0:01:39]} 13. Bd5 {[%emt 0:02:02]} Bxd5 {[%emt 0:06:18]} 14. exd5 {[%emt 0:00:20]} Ne7 {[%emt 0:00:13]} 15. c4 {[%emt 0:02:42]} Qg6 {[%emt 0:12:16]} 16. O-O {[%emt 0:01:50]} Qd3 {[%emt 0:06:09]} 17. Rc1 {[%emt 0:03:39]} Nf5 {[%emt 0:10:04]} 18. Rc3 {[%emt 0:04:17]} Qd4 {[%emt 0:04:45]} 19. Qc2 {[%emt 0:05:51]} Be7 {[%emt 0:10:16]} 20. Rd1 {[%emt 0:02:29]} Qg4 {[%emt 0:01:46]} 21. h3 {[%emt 0:02:39]} Qg6 {[%emt 0:00:25]} 22. cxb5 {[%emt 0:04:57]} Nd4 {[%emt 0:13:41]} 23. Rc8+ {[%emt 0:06:08]} Kd7 {[%emt 0:03:50]} 24. Qc7# {[%emt 0:01:25]} 1-0